fUST/lending_fUST_20260117
["ID","MTS","AMOUNT","RATE_DAILY","PERIOD"]
[402226432,1768612267795,-500.0,0.00022191,3]
[402226433,1768612267805,-1186.99,0.00022191,3]
[402226434,1768612267816,-1994.44,0.00022191,3]
[402226435,1768612267826,-523.14,0.00022191,3]
[402226436,1768612267836,-500.0,0.00022191,3]
[402226437,1768612267846,-933.57,0.00022191,3]
[402226438,1768612267856,-1547.34,0.00022191,3]
[402226439,1768612267866,-1004.8,0.00022191,3]
[402226440,1768612267876,-500.0,0.00022191,3]
[402226441,1768612267886,-16346.06,0.00022191,3]
[402226442,1768612267896,-500.0,0.00022191,3]
[402226443,1768612267908,-1226.67,0.00022191,3]
[402226444,1768612267918,-612.9,0.00022191,3]
[402226445,1768612267928,-656.08,0.00022191,3]
[402226446,1768612267938,-500.0,0.00022191,3]
[402226447,1768612267948,-500.0,0.00022191,3]
[402226448,1768612267959,-500.0,0.00022191,3]
[402226449,1768612267969,-1118.7,0.00022191,3]
[402226450,1768612267979,-1409.14,0.00022191,3]
[402226451,1768612267989,-500.0,0.00022191,3]
[402226452,1768612267999,-500.0,0.00022191,3]
[402226453,1768612268010,-500.0,0.00022191,3]
[402226454,1768612268020,-500.0,0.00022191,3]
[402226455,1768612268030,-500.0,0.00022191,3]
[402226456,1768612268040,-500.0,0.00022191,3]
[402226457,1768612268051,-642.44381286,0.00022191,3]
[402226458,1768612268061,-500.0,0.00022191,3]
[402226459,1768612268073,-1384.22,0.00022191,3]
[402226460,1768612268084,-500.0,0.00022191,3]
[402226461,1768612268094,-500.0,0.00022191,3]
[402226462,1768612268104,-500.0,0.00022191,3]
[402226463,1768612268114,-500.0,0.00022191,3]
[402226464,1768612268124,-500.0,0.00022191,3]
[402226465,1768612268135,-655.85,0.00022191,3]
[402226466,1768612268146,-500.0,0.00022191,3]
[402226467,1768612268156,-500.0,0.00022191,3]
[402226468,1768612268167,-1683.12,0.00022191,3]
[402226469,1768612268177,-500.0,0.00022191,3]
[402226470,1768612268187,-1141.76,0.00022191,3]
[402226471,1768612268198,-2466.84,0.00022191,3]
[402226472,1768612268208,-500.0,0.00022191,3]
[402226473,1768612268219,-500.0,0.00022191,3]
[402226474,1768612268229,-500.0,0.00022191,3]
[402226475,1768612268240,-500.0,0.00022191,3]
[402226476,1768612268250,-500.0,0.00022191,2]
[402226477,1768612268260,-500.0,0.00022191,3]
[402226478,1768612268271,-500.0,0.00022191,3]
[402226479,1768612268282,-703.27,0.00022191,3]
[402226480,1768612268292,-762.01,0.00022191,3]
[402226481,1768612268302,-500.0,0.00022191,3]
[402226482,1768612268312,-1884.7,0.00022191,3]
[402226483,1768612268322,-754.32,0.00022191,3]
[402226484,1768612268332,-500.0,0.00022191,3]
[402226485,1768612268343,-504.06,0.00022191,3]
[402226486,1768612268354,-500.0,0.00022191,3]
[402226487,1768612268365,-500.0,0.00022191,3]
[402226488,1768612268375,-500.0,0.00022191,3]
[402226489,1768612268386,-500.0,0.00022191,3]
[402226490,1768612268396,-1595.17,0.00022191,3]
[402226491,1768612268406,-1407.78,0.00022191,3]
[402226492,1768612268416,-1591.45,0.00022191,3]
[402226493,1768612268426,-500.0,0.00022191,3]
[402226494,1768612268437,-1092.06,0.00022191,3]
[402226495,1768612268447,-500.0,0.00022191,3]
[402226496,1768612268456,-899.14,0.00022191,3]
[402226497,1768612268466,-500.0,0.00022191,3]
[402226498,1768612268477,-500.0,0.00022191,3]
[402226499,1768612268487,-885.73,0.00022191,3]
[402226500,1768612268497,-500.0,0.00022191,3]
[402226501,1768612268507,-500.0,0.00022191,3]
[402226502,1768612268517,-1029.09,0.00022191,3]
[402226503,1768612268528,-500.0,0.00022191,3]
[402226504,1768612268538,-615.64,0.00022191,3]
[402226505,1768612268549,-500.0,0.00022191,3]
[402226506,1768612268559,-500.0,0.00022191,3]
[402226507,1768612268569,-818.32,0.00022191,3]
[402226508,1768612268580,-500.0,0.00022191,2]
[402226509,1768612268590,-280.83099644,0.00022191,3]
[402226510,1768612268600,-500.0,0.00022191,3]
[402226511,1768612268610,-500.0,0.00022191,3]
[402226512,1768612268621,-500.0,0.00022191,3]
[402226513,1768612268631,-500.0,0.00022191,3]
[402226514,1768612268642,-500.0,0.00022191,3]
[402226515,1768612268651,-1293.79,0.00022191,3]
[402226516,1768612268662,-500.0,0.00022191,3]
[402226517,1768612268672,-599.42,0.00022191,3]
[402226518,1768612268683,-685.41,0.00022191,3]
[402226519,1768612268693,-500.0,0.00022191,3]
[402226520,1768612268704,-1974.67,0.00022191,3]
[402226521,1768612268715,-500.0,0.00022191,3]
[402226522,1768612268726,-1560.37,0.00022191,3]
[402226523,1768612268736,-500.0,0.00022191,3]
[402226524,1768612268746,-500.0,0.00022191,3]
[402226525,1768612268757,-500.0,0.00022191,2]
[402226526,1768612268767,-500.0,0.00022191,3]
[402226527,1768612268778,-500.0,0.00022191,3]
[402226528,1768612268788,-541.65842006,0.00022191,3]
[402226529,1768612268798,-500.0,0.00022191,3]
[402226530,1768612268808,-500.0,0.00022191,3]
[402226531,1768612268819,-500.0,0.00022191,3]
[402226532,1768612268829,-2128.03,0.00022191,3]
[402226533,1768612268839,-2225.62,0.00022191,3]
[402226534,1768612268850,-500.0,0.00022191,3]
[402226535,1768612268860,-500.0,0.00022191,2]
[402226536,1768612268871,-500.0,0.00022191,3]
[402226537,1768612268881,-500.0,0.00022191,3]
[402226538,1768612268891,-931.4,0.00022191,3]
[402226539,1768612268902,-432.18851547,0.00022191,3]
[402226540,1768612268912,-500.0,0.00022191,3]
[402226541,1768612268923,-500.0,0.00022191,3]
[402226542,1768612268933,-500.0,0.00022191,3]
[402226543,1768612268943,-500.0,0.00022191,3]
[402226544,1768612268955,-500.0,0.00022191,2]
[402226545,1768612268965,-895.04,0.00022191,3]
[402226546,1768612268976,-1364.94,0.00022191,3]
[402226547,1768612268986,-500.0,0.00022192,5]
[402226548,1768612268997,-1367.0,0.00022272,2]
[402226549,1768612269007,-2147.0,0.00022272,2]
[402226550,1768612269018,-715.0,0.00022272,2]
[402226551,1768612269029,-178.0,0.00022272,2]
[402226552,1768612269039,-417.0,0.00022272,2]
[402226553,1768612269052,-181.72226082,0.00022285,120]
[402226554,1768612269063,-1021.0,0.00022361,120]
[402226555,1768612269073,-612.0,0.00022363,120]
[402226556,1768612269084,-367.0,0.00022364,120]
[402226557,1768612269093,-221.0,0.00022364,120]
[402226558,1768612269104,-363.7,0.00022392,2]
[402226559,1768612269114,-826.309608,0.00022396,30]
[402226560,1768612269124,-3268.36,0.000224,14]
[402226561,1768612269135,-239.85157891,0.00022411,7]
[402226562,1768612269145,-367.0,0.00022417,120]
[402226563,1768612269155,-220.0,0.00022419,120]
[402226564,1768612269166,-165.0,0.0002242,120]
[402226565,1768612269177,-166.0,0.00022421,120]
[402226566,1768612269187,-800.0,0.00022428,2]
[402226567,1768612269197,-500.0,0.00022465,3]
[402226568,1768612269207,-500.0,0.00022465,3]
[402226569,1768612269218,-500.0,0.00022465,3]
[402226570,1768612269228,-540.76160659,0.00022465,3]
[402226571,1768612269238,-500.0,0.00022465,3]
[402226572,1768612269248,-500.0,0.00022465,3]
[402226573,1768612269259,-590.19269095,0.00022465,3]
[402226574,1768612269268,-1030.1027638,0.00022465,3]
[402226575,1768612269278,-500.0,0.00022465,3]
[402226576,1768612269288,-500.0,0.00022465,3]
[402226577,1768612269298,-323.99,0.00022465,3]
[402226578,1768612269308,-500.0,0.00022465,3]
[402226579,1768612269318,-500.0,0.00022465,3]
[402226580,1768612269328,-500.0,0.00022465,3]
[402226581,1768612269339,-500.0,0.00022465,3]
[402226582,1768612269349,-500.0,0.00022465,3]
[402226583,1768612269359,-500.0,0.00022465,3]
[402226584,1768612269369,-500.0,0.00022465,3]
[402226585,1768612269379,-525.29956819,0.00022465,3]
[402226586,1768612269389,-500.0,0.00022465,3]
[402226587,1768612269399,-500.0,0.00022465,3]
[402226588,1768612269409,-500.0,0.00022465,3]
[402226589,1768612269419,-500.0,0.00022465,3]
[402226590,1768612269429,-500.0,0.00022465,3]
[402226591,1768612269439,-1606.72,0.00022465,3]
[402226592,1768612269449,-1469.77,0.00022465,3]
[402226593,1768612269460,-525.69335635,0.00022465,3]
[402226594,1768612269471,-500.0,0.00022465,3]
[402226595,1768612269483,-500.0,0.00022465,3]
[402226596,1768612269496,-502.68262837,0.00022465,3]
[402226597,1768612269775,-627.89,0.00022465,3]
[402226598,1768612269785,-543.89,0.00022465,3]
[402226599,1768612269794,-500.0,0.00022465,3]
[402226600,1768612269804,-500.0,0.00022465,3]
[402226601,1768612269815,-500.0,0.00022465,3]
[402226602,1768612269825,-500.0,0.00022465,3]
[402226603,1768612269836,-500.0,0.00022465,3]
[402226604,1768612269846,-643.23,0.00022465,3]
[402226605,1768612269857,-500.0,0.00022465,3]
[402226606,1768612269867,-500.0,0.00022465,3]
[402226607,1768612269876,-972.04,0.00022465,3]
[402226608,1768612269886,-500.0,0.00022465,3]
[402226609,1768612269895,-500.0,0.00022465,3]
[402226610,1768612269904,-1177.42,0.00022465,3]
[402226611,1768612269914,-500.0,0.00022465,3]
[402226612,1768612269924,-1000.0,0.00022465,2]
[402226613,1768612269934,-500.0,0.00022465,3]
[402226614,1768612269944,-1019.12,0.00022465,3]
[402226615,1768612269953,-500.0,0.00022465,3]
[402226616,1768612269962,-884.65,0.00022465,3]
[402226617,1768612269971,-512.51741864,0.00022465,3]
[402226618,1768612269981,-675.11,0.00022465,3]
[402226619,1768612269990,-500.0,0.00022465,3]
[402226620,1768612270000,-982.13,0.00022465,3]
[402226621,1768612270010,-500.0,0.00022465,3]
[402226622,1768612270019,-500.0,0.00022465,3]
[402226623,1768612270029,-500.0,0.00022465,3]
[402226624,1768612270038,-500.0,0.00022465,3]
[402226625,1768612270048,-500.0,0.00022465,3]
[402226626,1768612270057,-918.56,0.00022465,3]
[402226627,1768612270067,-500.0,0.00022465,3]
[402226628,1768612270076,-500.0,0.00022465,3]
[402226629,1768612270085,-500.0,0.00022465,3]
[402226630,1768612270094,-500.0,0.00022465,3]
[402226631,1768612270104,-500.0,0.00022465,3]
[402226632,1768612270114,-500.0,0.00022465,3]
[402226633,1768612270124,-823.41,0.00022465,3]
[402226634,1768612270134,-500.0,0.00022465,3]
[402226635,1768612270144,-500.0,0.00022465,3]
[402226636,1768612270153,-745.47,0.00022465,3]
[402226637,1768612270163,-500.0,0.00022465,3]
[402226638,1768612270172,-559.13,0.00022465,3]
[402226639,1768612270182,-500.0,0.00022465,3]
[402226640,1768612270191,-500.0,0.00022465,3]
[402226641,1768612270201,-519.2,0.00022465,3]
[402226642,1768612270210,-500.0,0.00022465,3]
[402226643,1768612270221,-500.0,0.00022465,3]
[402226644,1768612270231,-500.0,0.00022465,3]
[402226645,1768612270240,-1010.64,0.00022465,3]
[402226646,1768612270249,-863.28,0.00022465,3]
[402226647,1768612270261,-500.0,0.00022465,3]
[402226648,1768612270271,-500.0,0.00022465,3]
[402226649,1768612270280,-1065.68,0.00022465,3]
[402226650,1768612270291,-841.85,0.00022465,3]
[402226651,1768612270299,-500.0,0.00022465,3]
[402226652,1768612270308,-500.0,0.00022465,3]
[402226653,1768612270318,-1718.24,0.00022465,3]
[402226654,1768612270328,-434.7385455,0.00022465,3]
[402226655,1768612270337,-500.0,0.00022465,3]
[402226656,1768612270347,-500.0,0.00022465,3]
[402226657,1768612270356,-500.0,0.00022465,3]
[402226658,1768612270366,-500.0,0.00022465,3]
[402226659,1768612270376,-500.0,0.00022465,3]
[402226660,1768612270386,-500.0,0.00022465,3]
[402226661,1768612270395,-664.42,0.00022465,3]
[402226662,1768612270405,-500.0,0.00022465,3]
[402226663,1768612270415,-836.47,0.00022465,3]
[402226664,1768612270424,-500.0,0.00022465,3]
[402226665,1768612270434,-500.0,0.00022465,3]
[402226666,1768612270444,-500.0,0.00022465,3]
[402226667,1768612270454,-500.0,0.00022465,3]
[402226668,1768612270463,-500.0,0.00022465,3]
[402226669,1768612270474,-500.0,0.00022465,3]
[402226670,1768612270483,-568.73,0.00022465,3]
[402226671,1768612270492,-888.54,0.00022465,3]
[402226672,1768612270501,-1228.67,0.00022465,3]
[402226673,1768612270511,-503.6316325,0.00022465,3]
[402226674,1768612270521,-938.01,0.00022465,3]
[402226675,1768612270530,-500.30895696,0.00022465,3]
[402226676,1768612270539,-1143.87,0.00022465,3]
[402226677,1768612270549,-500.0,0.00022465,3]
[402226678,1768612270558,-500.0,0.00022465,3]
[402226679,1768612270567,-500.0,0.00022465,3]
[402226680,1768612270576,-500.21223445,0.00022465,3]
[402226681,1768612270585,-500.0,0.00022465,3]
[402226682,1768612270594,-500.0,0.00022465,3]
[402226683,1768612270603,-500.0,0.00022465,3]
[402226684,1768612270612,-685.57,0.00022465,3]
[402226685,1768612270621,-500.0,0.00022465,3]
[402226686,1768612270631,-500.0,0.00022465,3]
[402226687,1768612270640,-500.0,0.00022465,3]
[402226688,1768612270650,-500.0,0.00022465,3]
[402226689,1768612270659,-500.0,0.00022465,3]
[402226690,1768612270669,-324.88819364,0.00022465,3]
[402226691,1768612270679,-500.0,0.00022465,3]
[402226692,1768612270689,-500.0,0.00022465,3]
[402226693,1768612270698,-500.0,0.00022465,3]
[402226694,1768612270709,-1194.53,0.00022465,3]
[402226695,1768612270718,-1487.38,0.00022465,3]
[402226696,1768612270727,-500.0,0.00022465,3]
[402226697,1768612270737,-536.48,0.00022465,3]
[402226698,1768612270746,-500.0,0.00022465,3]
[402226699,1768612270755,-500.0,0.00022465,2]
[402226700,1768612270765,-1698.69,0.00022465,3]
[402226701,1768612270774,-500.0,0.00022465,3]
[402226702,1768612270784,-500.0,0.00022465,3]
[402226703,1768612270794,-1167.35,0.00022465,3]
[402226704,1768612270804,-628.62,0.00022465,3]
[402226705,1768612270814,-500.0,0.00022465,3]
[402226706,1768612270824,-1160.25,0.00022465,3]
[402226707,1768612270833,-2025.42,0.00022465,3]
[402226708,1768612270843,-500.0,0.00022465,3]
[402226709,1768612270854,-500.0,0.00022465,3]
[402226710,1768612270863,-679.33,0.00022465,3]
[402226711,1768612270873,-500.0,0.00022465,3]
[402226712,1768612270882,-530.21,0.00022465,3]
[402226713,1768612270891,-500.0,0.00022465,3]
[402226714,1768612270900,-500.2,0.00022465,3]
[402226715,1768612270909,-569.58,0.00022465,3]
[402226716,1768612270919,-500.0,0.00022465,3]
[402226717,1768612270928,-552.12,0.00022465,3]
[402226718,1768612270937,-500.0,0.00022465,3]
[402226719,1768612270947,-500.54632035,0.00022465,3]
[402226720,1768612270957,-500.0,0.00022465,3]
[402226721,1768612270966,-500.0,0.00022465,3]
[402226722,1768612270976,-500.0,0.00022465,3]
[402226723,1768612270985,-500.0,0.00022465,3]
[402226724,1768612270995,-317.53999457,0.00022465,3]
[402226725,1768612271006,-500.0,0.00022465,3]
[402226726,1768612271015,-500.0,0.00022465,3]
[402226727,1768612271024,-500.0,0.00022465,3]
[402226728,1768612271036,-500.0,0.00022465,3]
[402226729,1768612271046,-1306.68,0.00022465,3]
[402226730,1768612271056,-500.0,0.00022465,3]
[402226731,1768612271067,-624.94,0.00022465,3]
[402226732,1768612271076,-500.0,0.00022465,3]
[402226733,1768612271085,-613.28,0.00022465,3]
[402226734,1768612271094,-500.0,0.00022465,3]
[402226735,1768612271103,-1429.76,0.00022465,3]
[402226736,1768612271112,-500.0,0.00022465,3]
[402226737,1768612271122,-503.53099737,0.00022465,3]
[402226738,1768612271131,-500.0,0.00022465,3]
[402226739,1768612271140,-699.17,0.00022465,3]
[402226740,1768612271149,-913.53,0.00022465,3]
[402226741,1768612271159,-500.0,0.00022465,3]
[402226742,1768612271168,-500.0,0.00022465,3]
[402226743,1768612271178,-1931.0,0.00022465,3]
[402226744,1768612271187,-1057.67,0.00022465,3]
[402226745,1768612271196,-500.0,0.00022465,3]
[402226746,1768612271205,-500.0,0.00022465,3]
[402226747,1768612271216,-1336.63,0.00022465,3]
[402226748,1768612271225,-502.89,0.00022465,3]
[402226749,1768612271234,-500.0,0.00022465,3]
[402226750,1768612271243,-1925.58,0.00022465,3]
[402226751,1768612271252,-500.0,0.00022465,3]
[402226752,1768612271261,-500.0,0.00022465,3]
[402226753,1768612271271,-500.0,0.00022465,3]
[402226754,1768612271280,-542.45,0.00022465,3]
[402226755,1768612271289,-500.0,0.00022465,3]
[402226756,1768612271298,-1041.15,0.00022465,3]
[402226757,1768612271307,-500.0,0.00022465,3]
[402226758,1768612271317,-500.0,0.00022465,3]
[402226759,1768612271326,-500.0,0.00022465,3]
[402226760,1768612271335,-500.0,0.00022465,3]
[402226761,1768612271344,-500.0,0.00022465,3]
[402226762,1768612271353,-500.0,0.00022465,3]
[402226763,1768612271362,-500.0,0.00022465,3]
[402226764,1768612271371,-1088.64,0.00022465,3]
[402226765,1768612271380,-500.0,0.00022465,3]
[402226766,1768612271391,-500.0,0.00022465,3]
[402226767,1768612271404,-478.23883487,0.00022465,3]
[402226768,1768612271413,-500.0,0.00022465,3]
[402226769,1768612271423,-2379.42,0.00022465,3]
[402226770,1768612271431,-500.0,0.00022465,3]
[402226771,1768612271440,-528.71,0.00022465,3]
[402226772,1768612271449,-500.0,0.00022465,3]
[402226773,1768612271458,-500.0,0.00022465,3]
[402226774,1768612271467,-577.81,0.00022465,3]
[402226775,1768612271478,-500.0,0.00022465,3]
[402226776,1768612271487,-1069.82,0.00022465,3]
[402226777,1768612271496,-1058.35,0.00022465,3]
[402226778,1768612271505,-1720.28,0.00022465,3]
[402226779,1768612271514,-525.19152528,0.00022465,3]
[402226780,1768612271523,-196.70025255,0.00022465,3]
[402226781,1768612271532,-805.67,0.00022465,3]
[402226782,1768612271542,-1092.57,0.00022465,3]
[402226783,1768612271552,-500.0,0.00022465,3]
[402226784,1768612271562,-500.0,0.00022465,3]
[402226785,1768612271570,-500.0,0.00022465,3]
[402226786,1768612271580,-500.0,0.00022465,3]
[402226787,1768612271589,-500.0,0.00022465,3]
[402226788,1768612271599,-1108.94,0.00022465,3]
[402226789,1768612271608,-500.0,0.00022465,3]
[402226790,1768612271617,-500.0,0.00022465,3]
[402226791,1768612271627,-500.0,0.00022465,3]
[402226792,1768612271636,-500.0,0.00022465,3]
[402226793,1768612271646,-500.0,0.00022465,3]
[402226794,1768612271656,-500.0,0.00022465,3]
[402226795,1768612271677,-673.97,0.00022465,3]
[402226796,1768612271696,-607.14,0.00022465,3]
[402226797,1768612271708,-612.67,0.00022465,3]
[402226798,1768612271722,-500.0,0.00022465,3]
[402226799,1768612271731,-500.0,0.00022465,3]
[402226800,1768612271741,-1798.83,0.00022465,3]
[402226801,1768612271750,-559.87,0.00022465,3]
[402226802,1768612271760,-500.0,0.00022465,3]
[402226803,1768612271769,-500.0,0.00022465,3]
[402226804,1768612271779,-1066.43,0.00022465,3]
[402226805,1768612271788,-844.99,0.00022465,3]
[402226806,1768612271799,-500.0,0.00022465,3]
[402226807,1768612271808,-552.5,0.00022465,3]
[402226808,1768612271818,-850.34,0.00022465,3]
[402226809,1768612271828,-1503.99,0.00022465,3]
[402226810,1768612271837,-500.0,0.00022465,3]
[402226811,1768612271847,-500.0,0.00022465,3]
[402226812,1768612271856,-464.34610777,0.00022465,3]
[402226813,1768612271865,-1047.78,0.00022465,3]
[402226814,1768612271874,-2028.81,0.00022465,3]
[402226815,1768612271883,-984.57,0.00022465,3]
[402226816,1768612271893,-500.0,0.00022465,3]
[402226817,1768612271903,-615.63,0.00022465,3]
[402226818,1768612271913,-500.0,0.00022465,3]
[402226819,1768612271922,-500.0,0.00022465,3]
[402226820,1768612271931,-500.0,0.00022465,3]
[402226821,1768612271941,-500.0,0.00022465,3]
[402226822,1768612271950,-500.0,0.00022465,3]
[402226823,1768612271959,-500.46253805,0.00022465,3]
[402226824,1768612271971,-1048.01,0.00022465,3]
[402226825,1768612271981,-861.03,0.00022465,3]
[402226826,1768612271992,-500.0,0.00022465,3]
[402226827,1768612272002,-630.31,0.00022465,3]
[402226828,1768612272011,-2325.91,0.00022465,3]
[402226829,1768612272022,-666.35,0.00022465,3]
[402226830,1768612272031,-1000.0,0.00022465,2]
[402226831,1768612272040,-696.01,0.00022465,3]
[402226832,1768612272049,-724.03,0.00022465,3]
[402226833,1768612272059,-500.0,0.00022465,3]
[402226834,1768612272068,-500.0,0.00022465,3]
[402226835,1768612272150,-845.49,0.00022465,3]
[402226836,1768612272159,-500.0,0.00022465,3]
[402226837,1768612272168,-500.0,0.00022465,3]
[402226838,1768612272177,-1122.88,0.00022465,3]
[402226839,1768612272188,-500.0,0.00022465,3]
[402226840,1768612272198,-500.0,0.00022465,3]
[402226841,1768612272207,-779.61,0.00022465,3]
[402226842,1768612272216,-500.0,0.00022465,3]
[402226843,1768612272225,-500.0,0.00022465,3]
[402226844,1768612272234,-500.0,0.00022465,3]
[402226845,1768612272243,-188.16,0.00022465,3]
[402226846,1768612272253,-500.0,0.00022465,3]
[402226847,1768612272263,-500.0,0.00022465,3]
[402226848,1768612272272,-500.0,0.00022465,3]
[402226849,1768612272281,-596.29,0.00022465,3]
[402226850,1768612272290,-1501.63,0.00022465,3]
[402226851,1768612272299,-612.28911898,0.00022465,3]
[402226852,1768612272307,-2167.4,0.00022465,3]
[402226853,1768612272318,-500.0,0.00022465,3]
[402226854,1768612272327,-500.87139287,0.00022465,3]
[402226855,1768612272336,-816.59,0.00022465,2]
[402226856,1768612272346,-687.65,0.00022465,3]
[402226857,1768612272355,-1854.01,0.00022465,3]
[402226858,1768612272364,-555.87,0.00022465,3]
[402226859,1768612272373,-1200.0,0.00022465,3]
[402226860,1768612272382,-500.0,0.00022465,3]
[402226861,1768612272391,-500.0,0.00022465,3]
[402226862,1768612272399,-500.0,0.00022465,3]
[402226863,1768612272408,-500.0,0.00022465,3]
[402226864,1768612272417,-533.20469961,0.00022465,3]
[402226865,1768612272426,-772.71,0.00022465,3]
[402226866,1768612272434,-500.0,0.00022465,3]
[402226867,1768612272443,-983.25,0.00022465,3]
[402226868,1768612272452,-965.59,0.00022465,3]
[402226869,1768612272461,-500.0,0.00022465,3]
[402226870,1768612272471,-500.0,0.00022465,3]
[402226871,1768612272481,-950.31,0.00022465,3]
[402226872,1768612272490,-789.67,0.00022465,3]
[402226873,1768612272499,-500.0,0.00022465,3]
[402226874,1768612272508,-1345.73,0.00022465,3]
[402226875,1768612272517,-1202.15,0.00022465,3]
[402226876,1768612272526,-500.0,0.00022465,3]
[402226877,1768612272536,-500.0,0.00022465,3]
[402226878,1768612272545,-500.0,0.00022465,3]
[402226879,1768612272554,-500.0,0.00022465,3]
[402226880,1768612272564,-500.0,0.00022465,3]
[402226881,1768612272574,-500.0,0.00022465,3]
[402226882,1768612272583,-1060.6,0.00022465,3]
[402226883,1768612272593,-500.0,0.00022465,3]
[402226884,1768612272603,-500.0,0.00022465,3]
[402226885,1768612272612,-500.0,0.00022465,3]
[402226886,1768612272621,-1057.71,0.00022465,3]
[402226887,1768612272630,-525.93,0.00022465,3]
[402226888,1768612272640,-500.0,0.00022465,3]
[402226889,1768612272649,-500.0,0.00022465,3]
[402226890,1768612272658,-500.0,0.00022465,3]
[402226891,1768612272668,-500.0,0.00022465,3]
[402226892,1768612272678,-500.0,0.00022465,3]
[402226893,1768612272687,-500.0,0.00022465,3]
[402226894,1768612272696,-1264.0,0.00022465,3]
[402226895,1768612272706,-500.0,0.00022465,3]
[402226896,1768612272719,-501.65784719,0.00022465,3]
[402226897,1768612272728,-500.0,0.00022465,3]
[402226898,1768612272737,-887.1,0.00022465,3]
[402226899,1768612272747,-1572.38,0.00022465,3]
[402226900,1768612272756,-861.54,0.00022465,3]
[402226901,1768612272765,-500.0,0.00022465,3]
[402226902,1768612272774,-500.0,0.00022465,3]
[402226903,1768612272784,-538.63829748,0.00022465,3]
[402226904,1768612272793,-849.14,0.00022465,3]
[402226905,1768612272802,-819.63,0.00022465,3]
[402226906,1768612272811,-636.06,0.00022465,3]
[402226907,1768612272820,-500.0,0.00022465,3]
[402226908,1768612272830,-500.0,0.00022465,3]
[402226909,1768612272839,-500.0,0.00022465,3]
[402226910,1768612272848,-500.0,0.00022465,3]
[402226911,1768612272858,-553.81,0.00022465,3]
[402226912,1768612272867,-1263.43,0.00022465,3]
[402226913,1768612272877,-1640.86,0.00022465,3]
[402226914,1768612272887,-994.98,0.00022465,3]
[402226915,1768612272896,-1583.3,0.00022465,3]
[402226916,1768612272905,-752.46,0.00022465,3]
[402226917,1768612272915,-500.0,0.00022465,3]
[402226918,1768612272924,-500.0,0.00022465,3]
[402226919,1768612272933,-500.0,0.00022465,3]
[402226920,1768612272943,-500.0,0.00022465,3]
[402226921,1768612272952,-1611.33,0.00022465,3]
[402226922,1768612272962,-500.0,0.00022465,3]
[402226923,1768612272971,-1663.66,0.00022465,3]
[402226924,1768612272980,-661.66,0.00022465,3]
[402226925,1768612272990,-500.0,0.00022465,3]
[402226926,1768612273010,-742.29,0.00022465,3]
[402226927,1768612273021,-1291.69,0.00022465,3]
[402226928,1768612273032,-500.0,0.00022465,3]
[402226929,1768612273042,-500.0,0.00022465,3]
[402226930,1768612273051,-675.18,0.00022465,3]
[402226931,1768612273060,-500.0,0.00022465,3]